fUSD/lending_fUSD_20251101
["ID","MTS","AMOUNT","RATE_DAILY","PERIOD"]
[392801145,1761965438139,-150.00000001,0.00014986,2]
[392801146,1761965438149,-8402.12,0.0001499,2]
[392801147,1761965438160,-242.29225255,0.00014991,2]
[392801148,1761965438170,-150.0,0.00014991,2]
[392801149,1761965438180,-152.43127205,0.00014991,2]
[392801150,1761965438190,-150.0,0.00014991,2]
[392801151,1761965438199,-150.0,0.00014991,2]
[392801152,1761965438209,-151.98744077,0.00014991,2]
[392801153,1761965438219,-500.0,0.00014993,2]
[392801154,1761965438228,-500.0,0.00014993,2]
[392801155,1761965438240,-500.0,0.00014993,2]
[392801156,1761965438250,-500.0,0.00014993,2]
[392801157,1761965438259,-500.0,0.00014993,2]
[392801158,1761965438269,-500.0,0.00014993,2]
[392801159,1761965438280,-500.0,0.00014993,2]
[392801160,1761965438290,-500.0,0.00014993,2]
[392801161,1761965438299,-500.0,0.00014993,2]
[392801162,1761965438310,-500.0,0.00014993,2]
[392801164,1761965438319,-500.0,0.00014993,2]
[392801166,1761965438329,-500.0,0.00014993,2]
[392801168,1761965438339,-500.0,0.00014993,2]
[392801169,1761965438349,-500.0,0.00014993,2]
[392801170,1761965438359,-500.0,0.00014993,2]
[392801171,1761965438369,-500.0,0.00014993,2]
[392801172,1761965438378,-500.0,0.00014993,2]
[392801173,1761965438389,-500.0,0.00014993,2]
[392801174,1761965438399,-500.0,0.00014993,2]
[392801175,1761965438409,-500.0,0.00014993,2]
[392801176,1761965438420,-363.83988138,0.00014993,2]
[392801177,1761965438430,-500.0,0.00014993,2]
[392801178,1761965438441,-500.0,0.00014993,2]
[392801179,1761965438450,-500.0,0.00014993,2]
[392801180,1761965438461,-500.0,0.00014993,2]
[392801181,1761965438473,-500.0,0.00014993,2]
[392801182,1761965438484,-500.0,0.00014993,2]
[392801183,1761965438494,-500.0,0.00014993,2]
[392801184,1761965438504,-500.0,0.00014993,2]
[392801185,1761965438513,-500.0,0.00014996,2]
[392801186,1761965438523,-500.0,0.00014996,2]
[392801187,1761965438533,-18769.8968623,0.00014997,2]
[392801188,1761965438543,-6686.0719847,0.00014997,2]
[392801189,1761965438552,-54780.453891,0.00014997,2]
[392801190,1761965438562,-12296.1260605,0.00014997,2]
[392801191,1761965438573,-170.9413527,0.00014997,2]
[392801193,1761965438582,-2314.2527814,0.00014997,2]
[392801195,1761965438592,-5122.6282313,0.00014997,2]
[392801197,1761965438603,-10173.8307619,0.00014997,2]
[392801199,1761965438612,-151.0,0.00014997,2]
[392801201,1761965438622,-368.99106928,0.00014999,2]
[392801202,1761965438631,-168.0293041,0.00014999,2]
[392801203,1761965438642,-500.0,0.00014999,2]
[392801204,1761965438651,-237.46301,0.00014999,2]
[392801205,1761965438661,-500.0,0.00014999,2]
[392801206,1761965438671,-493.93940652,0.00014999,2]
[392801207,1761965438680,-1000.6278,0.00014999,2]
[392801208,1761965438690,-462.88422217,0.00014999,2]
[392801209,1761965438699,-914.37,0.00014999,2]
[392801210,1761965438709,-167.39864793,0.00014999,2]
[392801211,1761965438718,-150.0,0.00014999,2]
[392801212,1761965438728,-500.0,0.00014999,2]
[392801213,1761965438737,-500.0,0.00014999,2]
[392801214,1761965438747,-500.0,0.00014999,2]
[392801215,1761965438756,-500.0,0.00014999,2]
[392801216,1761965438766,-500.0,0.00014999,2]
[392801217,1761965438776,-500.0,0.00014999,2]
[392801218,1761965438785,-500.0,0.00014999,2]
[392801219,1761965438795,-500.0,0.00014999,2]
[392801220,1761965438807,-500.0,0.00014999,2]
[392801221,1761965438816,-500.0,0.00014999,2]
[392801222,1761965438826,-500.0,0.00014999,2]
[392801223,1761965438835,-500.0,0.00014999,2]
[392801224,1761965438845,-500.0,0.00014999,2]
[392801225,1761965438855,-500.0,0.00014999,2]
[392801226,1761965438864,-500.0,0.00014999,2]
[392801227,1761965438873,-227.46764398,0.00014999,2]
[392801228,1761965438883,-500.0,0.00014999,2]
[392801229,1761965438893,-500.0,0.00014999,2]
[392801230,1761965438902,-500.0,0.00014999,2]
[392801231,1761965438912,-500.0,0.00014999,2]
[392801232,1761965438921,-500.0,0.00014999,2]
[392801233,1761965438931,-500.0,0.00014999,2]
[392801234,1761965438941,-500.0,0.00014999,2]
[392801235,1761965438950,-500.0,0.00014999,2]
[392801236,1761965438959,-500.0,0.00014999,2]
[392801237,1761965438969,-500.0,0.00014999,2]
[392801238,1761965438980,-403.77086576,0.00014999,2]
[392801239,1761965438989,-671.01388889,0.00014999,2]
[392801240,1761965438998,-4178.0,0.00015,2]
[392801241,1761965439009,-2247006.60325423,0.00015,2]
[392801242,1761965439018,-2027.95723379,0.00015,2]
[392801243,1761965439027,-7894.68518592,0.00015,2]
[392801244,1761965439037,-2159413.28563169,0.00015,2]
[392801245,1761965439076,-3270.60457909,0.00015,2]
[392801246,1761965439088,-9454.36284701,0.00015,2]
[392801247,1761965439100,-54200.92100529,0.00015,2]
[392801249,1761965440252,-500.0,0.00014898,2]
[392801250,1761965440262,-150.0,0.00014898,2]
[392801251,1761965440272,-145.84,0.00015,2]
[392801252,1761965440300,-1402897.43459401,0.00015,2]
[392801253,1761965440419,-265.47137625,0.00015,2]
[392801254,1761965440432,-1647.25,0.00015,2]
[392801261,1761965442036,541.36453919,0.00030136,120]
[392801266,1761965443238,-608.052521,0.00015,2]
[392801267,1761965443450,-400.0,0.00015,2]
[392801268,1761965443463,-972.79569223,0.00015,2]
[392801277,1761965446970,327.20406019,0.00030136,120]
[392801279,1761965454809,500.0,0.00030136,120]
[392801280,1761965464730,500.0,0.00030136,120]
[392801282,1761965465404,500.0,0.00030136,120]
[392801283,1761965475970,432.26417817,0.00030136,120]
[392801284,1761965497503,868.91,0.00030136,120]
[392801285,1761965511033,500.0,0.00030136,120]
[392801286,1761965514724,500.0,0.00030136,120]
[392801287,1761965520021,500.0,0.00030136,120]
[392801288,1761965525029,500.0,0.00030136,120]
[392801289,1761965530438,500.0,0.00030136,120]
[392801290,1761965538534,500.0,0.00030136,120]
[392801291,1761965538938,500.0,0.00030136,120]
[392801292,1761965543875,345.88582189,0.00030136,120]
[392801293,1761965552260,500.0,0.00030136,120]
[392801294,1761965556774,500.0,0.00030136,120]
[392801295,1761965559491,500.0,0.00030136,120]
[392801296,1761965560633,411.40522662,0.00030136,120]
[392801297,1761965562885,500.0,0.00030136,120]
[392801298,1761965563432,500.0,0.00030136,120]
[392801299,1761965566937,500.0,0.00030136,120]
[392801300,1761965569381,500.0,0.00030136,120]
[392801301,1761965569701,511.39,0.00030136,120]
[392801302,1761965569805,500.0,0.00030136,120]
[392801303,1761965575375,500.0,0.00030136,120]
[392801304,1761965577585,500.0,0.00030136,120]
[392801305,1761965582462,500.0,0.00030136,120]
[392801306,1761965583484,500.0,0.00030136,120]
[392801307,1761965617223,500.0,0.00030136,120]
[392801308,1761965617640,500.0,0.00030136,120]
[392801309,1761965621787,500.0,0.00030136,120]
[392801310,1761965636601,500.0,0.00030136,120]
[392801326,1761965655242,500.0,0.00030136,120]
[392801327,1761965656548,500.0,0.00030136,120]
[392801328,1761965658658,500.0,0.00030136,120]
[392801329,1761965666286,500.0,0.00030136,120]
[392801330,1761965667764,500.0,0.00030136,120]
[392801331,1761965668827,500.0,0.00030136,120]
[392801332,1761965673907,500.0,0.00030136,120]
[392801333,1761965687566,568.27429505,0.00030136,120]
[392801334,1761965701960,500.0,0.00030136,120]
[392801335,1761965707184,500.0,0.00030136,120]
[392801336,1761965707857,553.24,0.00030136,120]
[392801337,1761965712727,500.0,0.00030136,120]
[392801338,1761965714901,283.45478815,0.00030136,120]
[392801339,1761965720590,500.0,0.00030136,120]
[392801340,1761965724884,500.0,0.00030136,120]
[392801341,1761965742704,500.0,0.00030136,120]
[392801342,1761965745760,500.0,0.00030136,120]
[392801343,1761965752193,500.0,0.00030136,120]
[392801344,1761965754175,500.0,0.00030136,120]
[392801345,1761965756044,500.0,0.00030136,120]
[392801346,1761965762896,500.0,0.00030136,120]
[392801347,1761965776197,500.0,0.00030136,120]
[392801348,1761965781086,500.0,0.00030136,120]
[392801349,1761965791286,378.11604549,0.00030136,120]
[392801350,1761965795106,500.0,0.00030136,120]
[392801351,1761965807588,530.07737572,0.00030136,120]
[392801352,1761965809486,500.0,0.00030136,120]
[392801353,1761965812356,500.0,0.00030136,120]
[392801354,1761965814743,500.0,0.00030136,120]
[392801355,1761965831119,500.0,0.00030136,120]
[392801356,1761965835741,500.0,0.00030136,120]
[392801357,1761965835841,500.0,0.00030136,120]
[392801358,1761965840713,500.0,0.00030136,120]
[392801363,1761965860119,500.0,0.00030136,120]
[392801364,1761965864701,625.18,0.00030136,120]
[392801366,1761965887280,500.0,0.00030136,120]
[392801367,1761965904056,500.0,0.00030136,120]
[392801368,1761965911122,500.0,0.00030136,120]
[392801369,1761965916362,500.0,0.00030136,120]
[392801370,1761965964302,500.0,0.00030136,120]
[392801371,1761965980232,500.0,0.00030136,120]
[392801372,1761965996099,500.0,0.00030136,120]
[392801375,1761966007210,500.0,0.00030136,120]
[392801380,1761966015159,500.0,0.00030136,120]
[392801381,1761966031580,500.0,0.00030136,120]
[392801382,1761966038889,619.4545992,0.00030136,120]
[392801383,1761966047585,500.0,0.00030136,120]
[392801384,1761966058142,500.0,0.00030136,120]
[392801385,1761966059143,500.0,0.00030136,120]
[392801386,1761966060986,638.00197319,0.00030136,120]
[392801387,1761966081481,500.0,0.00030136,120]
[392801388,1761966089963,500.0,0.00030136,120]
[392801389,1761966090854,832.71,0.00030136,120]
[392801390,1761966119122,500.0,0.00030136,120]
[392801392,1761966176926,500.0,0.00030136,120]
[392801393,1761966182394,329.88521274,0.00030136,120]
[392801394,1761966190341,500.0,0.00030136,120]
[392801395,1761966197173,500.0,0.00030136,120]
[392801396,1761966217614,500.0,0.00030136,120]
[392801398,1761966244555,500.0,0.00030136,120]
[392801399,1761966249428,500.0,0.00030136,120]
[392801400,1761966298299,333.06147552,0.00030136,120]
[392801401,1761966306356,500.0,0.00030136,120]
[392801403,1761966321628,500.0,0.00030136,120]
[392801404,1761966322631,152.6520242,0.00013488,2]
[392801405,1761966328990,153.51864397,0.00013488,2]
[392801406,1761966345095,225.43713203,0.00030136,120]
[392801407,1761966348274,500.0,0.00030136,120]
[392801408,1761966354645,500.0,0.00030136,120]
[392801409,1761966363368,500.0,0.00030136,120]
[392801410,1761966363551,151.0,0.00013488,2]
[392801411,1761966407579,296.67590658,0.00030136,120]
[392801412,1761966410314,500.0,0.00030136,120]
[392801413,1761966415258,500.0,0.00030136,120]
[392801414,1761966419753,500.0,0.00030136,120]
[392801415,1761966424795,500.0,0.00030136,120]
[392801416,1761966427306,500.0,0.00030136,120]
[392801417,1761966429148,500.0,0.00030136,120]
[392801418,1761966431430,500.0,0.00030136,120]
[392801419,1761966433202,500.0,0.00030136,120]
[392801420,1761966435649,500.0,0.00030136,120]
[392801421,1761966441323,500.0,0.00030136,120]
[392801422,1761966450000,500.0,0.00030136,120]
[392801423,1761966453762,500.0,0.00030136,120]
[392801424,1761966455141,173.49,0.00011107,2]
[392801425,1761966456859,500.0,0.00030136,120]
[392801426,1761966457820,500.0,0.00030136,120]
[392801427,1761966461394,500.0,0.00030136,120]
[392801428,1761966475824,500.0,0.00030136,120]
[392801429,1761966485699,500.0,0.00030136,120]
[392801430,1761966491527,500.0,0.00030136,120]
[392801431,1761966496662,500.0,0.00030136,120]
[392801432,1761966497551,500.0,0.00030136,120]
[392801433,1761966499318,500.0,0.00030136,120]
[392801434,1761966501481,500.0,0.00030136,120]
[392801435,1761966516689,500.0,0.00030136,120]
[392801436,1761966535774,378.45050168,0.00030136,120]
[392801437,1761966560392,500.0,0.00030136,120]
[392801438,1761966562399,500.0,0.00030136,120]
[392801439,1761966571640,500.0,0.00030136,120]
[392801440,1761966584988,500.0,0.00030136,120]
[392801441,1761966586187,500.0,0.00030136,120]
[392801442,1761966586513,451.7568905,0.00030136,120]
[392801443,1761966595644,500.0,0.00030136,120]
[392801444,1761966603452,500.0,0.00030136,120]
[392801445,1761966608273,500.0,0.00030136,120]
[392801446,1761966619336,500.0,0.00030136,120]
[392801447,1761966619444,500.0,0.00030136,120]
[392801448,1761966624844,530.19,0.00030136,120]
[392801449,1761966628364,500.0,0.00030136,120]
[392801450,1761966628944,482.73428823,0.00030136,120]
[392801458,1761966632328,-161.01,0.00013699,2]
[392801460,1761966632337,-195.0,0.00013745,2]
[392801462,1761966632347,-195.0,0.0001384,2]
[392801463,1761966632356,-161.87799562,0.00013884,2]
[392801466,1761966632381,-1219.05545319,0.00013884,2]
[392801467,1761966632392,-453.90225497,0.00013884,2]
[392801468,1761966632515,500.0,0.00030136,120]
[392801469,1761966632542,-17.58429622,0.00013884,2]
[392801470,1761966632553,-845.93,0.00013884,2]
[392801471,1761966632563,-152.37,0.00013918,2]
[392801472,1761966632573,-1200.0,0.00013964,2]
[392801473,1761966632583,-300.0,0.00013964,2]
[392801474,1761966632594,-1200.0,0.00013965,2]
[392801475,1761966632604,-300.0,0.00013965,2]
[392801476,1761966632614,-328.6702188,0.00013966,2]
[392801477,1761966632626,-395.25,0.00013966,2]
[392801478,1761966632638,-702.99590214,0.00013966,2]
[392801479,1761966632655,-3976.83387906,0.00013966,2]
[392801480,1761966632666,-248.71531821,0.00014017,2]
[392801481,1761966632676,-161.01,0.0001407,2]
[392801482,1761966632687,-150.0,0.00014102,2]
[392801483,1761966632697,-200.0,0.00014103,2]
[392801484,1761966632707,-8977.59,0.00014103,2]
[392801485,1761966632718,-9999.99,0.00014103,2]
[392801486,1761966632728,-150.99,0.00014103,2]
[392801487,1761966632738,-9999.99,0.00014103,2]
[392801488,1761966632749,-4166.29,0.00014103,2]
[392801489,1761966632759,-636.36,0.00014103,2]
[392801492,1761966632769,-166.66,0.000143,2]
[392801494,1761966632779,-150.99,0.000143,2]
[392801496,1761966632789,-999.99,0.000143,2]
[392801498,1761966632798,-3835.32,0.000143,2]
[392801500,1761966632808,-161.01,0.00014441,2]
[392801502,1761966632819,-476.65,0.00014441,2]
[392801504,1761966632829,-476.65,0.00014441,2]
[392801506,1761966632839,-476.65,0.00014441,2]
[392801508,1761966632849,-476.65,0.00014441,2]
[392801510,1761966632859,-476.65,0.00014441,2]
[392801513,1761966632874,-476.65,0.00014441,2]
[392801515,1761966632885,-476.65,0.00014441,2]
[392801517,1761966632895,-476.65,0.00014441,2]
[392801519,1761966632904,-393.0,0.00014495,2]
[392801521,1761966632915,-393.0,0.00014567,2]
[392801523,1761966632925,-322.6107,0.00014721,2]
[392801524,1761966632936,-151.0,0.00014721,2]
[392801525,1761966632946,-174.19067893,0.00014721,2]
[392801526,1761966632956,-646.65982734,0.00014721,2]
[392801527,1761966632966,-507.23912088,0.00014721,2]
[392801528,1761966632977,-514.84070869,0.00014721,2]
[392801529,1761966632987,-273.67037021,0.00014721,2]
[392801530,1761966632997,-187.78006525,0.00014721,2]
[392801531,1761966633007,-401.46515424,0.00014729,2]
[392801532,1761966633017,-3199.56,0.0001473,2]
[392801533,1761966633027,-393.0,0.00014757,2]
[392801534,1761966633037,-166.66,0.00014772,2]
[392801535,1761966633047,-161.01,0.00014812,2]
[392801536,1761966633057,-393.0,0.00014825,2]
[392801537,1761966633067,-883.1224,0.0001485,2]
[392801538,1761966633077,-474.44,0.00014864,2]
[392801539,1761966633087,-200.0,0.0001488,2]
[392801540,1761966633097,-393.0,0.00014887,2]
[392801541,1761966633107,-3338.19294579,0.000149,2]
[392801542,1761966633117,-644.64517938,0.000149,2]
[392801543,1761966633127,-543.84595254,0.000149,2]
[392801544,1761966633137,-820.0,0.00014912,2]
[392801545,1761966633148,-151.0,0.00014966,2]
[392801546,1761966633158,-500.47774572,0.00014973,2]
[392801547,1761966633167,-509.52805921,0.00014973,2]
[392801548,1761966633177,-500.0,0.00014973,2]
[392801549,1761966633187,-511.27645906,0.00014973,2]
[392801550,1761966633197,-151.0,0.00014975,2]
[392801551,1761966633207,-516.66774488,0.00014985,2]
[392801552,1761966633216,-151.92422519,0.00014991,2]
[392801553,1761966633231,-150.0,0.00014991,2]
[392801554,1761966633240,-150.0,0.00014991,2]
[392801555,1761966633251,-150.0,0.00014991,2]
[392801556,1761966633261,-151.13904288,0.00014991,2]
[392801557,1761966633271,-150.0,0.00014991,2]
[392801558,1761966633282,-150.0,0.00014991,2]
[392801559,1761966633292,-150.0,0.00014991,2]
[392801560,1761966633302,-150.0,0.00014991,2]
[392801561,1761966633312,-914.37,0.00014991,2]
[392801562,1761966633322,-150.0,0.00014991,2]
[392801563,1761966633332,-500.0,0.00014991,2]
[392801564,1761966633342,-150.0,0.00014991,2]
[392801565,1761966633352,-747.0,0.00014991,2]
[392801566,1761966633362,-150.0,0.00014991,2]
[392801567,1761966633373,-263.17194606,0.00014991,2]
[392801568,1761966633383,-150.0,0.00014991,2]
[392801569,1761966633393,-150.0,0.00014991,2]
[392801570,1761966633402,-150.0,0.00014991,2]
[392801571,1761966633416,-150.0,0.00014991,2]
[392801572,1761966633426,-150.0,0.00014991,2]
[392801573,1761966633436,-150.0,0.00014991,2]
[392801574,1761966633447,-150.0,0.00014991,2]
[392801575,1761966633456,-500.0,0.00014991,2]
[392801576,1761966633466,-500.0,0.00014991,2]
[392801577,1761966633476,-150.0,0.00014991,2]
[392801578,1761966633486,-214.88074345,0.00014991,2]
[392801579,1761966633496,-150.0,0.00014991,2]
[392801580,1761966633506,-152.58559931,0.00014991,2]
[392801581,1761966633516,-151.0,0.00014997,2]
[392801582,1761966633526,-237.46301,0.00014999,2]
[392801583,1761966633536,-168.0293041,0.00014999,2]
[392801584,1761966633545,-500.0,0.00014999,2]
[392801585,1761966633556,-368.99106928,0.00014999,2]
[392801586,1761966633566,-579.31642695,0.00014999,2]
[392801587,1761966633576,-500.0,0.00014999,2]
[392801588,1761966633585,-500.0,0.00014999,2]
[392801589,1761966633595,-500.0,0.00014999,2]
[392801590,1761966633606,-500.0,0.00014999,2]
[392801591,1761966633616,-500.0,0.00014999,2]
[392801592,1761966633626,-500.0,0.00014999,2]
[392801593,1761966633636,-630.23679009,0.00014999,2]
[392801594,1761966633646,-500.0,0.00014999,2]
[392801595,1761966633656,-500.0,0.00014999,2]
[392801596,1761966633666,-500.0,0.00014999,2]
[392801597,1761966633676,-500.0,0.00014999,2]
[392801598,1761966633686,-500.0,0.00014999,2]
[392801599,1761966633696,-363.83988138,0.00014999,2]
[392801600,1761966633706,-169.926,0.00014999,2]
[392801601,1761966633716,-4127.926,0.00014999,2]
[392801602,1761966633726,-500.0,0.00014999,2]
[392801603,1761966633735,-500.0,0.00014999,2]
[392801604,1761966633746,-500.0,0.00014999,2]
[392801605,1761966633755,-500.0,0.00014999,2]
[392801606,1761966633766,-500.0,0.00014999,2]
[392801607,1761966633775,-500.0,0.00014999,2]
[392801608,1761966633786,-500.0,0.00014999,2]
[392801609,1761966633796,-500.0,0.00014999,2]
[392801610,1761966633806,-500.0,0.00014999,2]
[392801611,1761966633816,-500.0,0.00014999,2]
[392801612,1761966633826,-500.0,0.00014999,2]
[392801613,1761966633836,-500.0,0.00014999,2]
[392801614,1761966633845,-500.0,0.00014999,2]
[392801615,1761966633855,-500.0,0.00014999,2]
[392801616,1761966633864,-500.0,0.00014999,2]
[392801617,1761966633874,-500.0,0.00014999,2]
[392801618,1761966633884,-500.0,0.00014999,2]
[392801619,1761966633894,-500.0,0.00014999,2]
[392801620,1761966633903,-500.0,0.00014999,2]
[392801621,1761966633913,-500.0,0.00014999,2]
[392801622,1761966633924,-500.0,0.00014999,2]
[392801623,1761966633933,-500.0,0.00014999,2]
[392801624,1761966633943,-500.0,0.00014999,2]
[392801625,1761966633952,-227.46764398,0.00014999,2]
[392801626,1761966633962,-150.0,0.00014999,2]
[392801627,1761966633972,-500.0,0.00014999,2]
[392801628,1761966633982,-500.0,0.00014999,2]
[392801629,1761966633991,-150.0,0.00014999,2]
[392801630,1761966634001,-500.0,0.00014999,2]
[392801631,1761966634010,-500.0,0.00014999,2]
[392801632,1761966634020,-500.0,0.00014999,2]
[392801633,1761966634029,-500.0,0.00014999,2]
[392801634,1761966634039,-500.0,0.00014999,2]
[392801635,1761966634049,-500.0,0.00014999,2]
[392801636,1761966634058,-500.0,0.00014999,2]
[392801637,1761966634068,-500.0,0.00014999,2]
[392801638,1761966634078,-155.642,0.00014999,2]
[392801639,1761966634087,-500.0,0.00014999,2]
[392801640,1761966634097,-500.0,0.00014999,2]
[392801641,1761966634108,-500.0,0.00014999,2]
[392801642,1761966634118,-500.0,0.00014999,2]
[392801643,1761966634128,-350.0,0.00014999,2]
[392801644,1761966634138,-462.88422217,0.00014999,2]
[392801645,1761966634147,-500.0,0.00014999,2]
[392801646,1761966634157,-500.0,0.00014999,2]
[392801647,1761966634166,-500.0,0.00014999,2]
[392801648,1761966634176,-500.0,0.00014999,2]
[392801649,1761966634185,-500.0,0.00014999,2]
[392801650,1761966634195,-500.0,0.00014999,2]
[392801651,1761966634205,-500.0,0.00014999,2]
[392801652,1761966634214,-500.0,0.00014999,2]
[392801653,1761966634224,-500.0,0.00014999,2]
[392801654,1761966634234,-500.0,0.00014999,2]
[392801655,1761966634243,-500.0,0.00014999,2]
[392801656,1761966634253,-403.77086576,0.00014999,2]
[392801657,1761966634262,-671.01388889,0.00014999,2]
[392801658,1761966634272,-3973.0,0.00015,2]
[392801659,1761966634282,-31374.38696834,0.00015,2]
[392801662,1761966638360,-300.0,0.00013964,2]
[392801663,1761966638370,-4574514.35993682,0.00015,2]
[392801664,1761966638414,-3201.26717241,0.00015,2]
[392801665,1761966638468,-514.51764316,0.00015,2]
[392801684,1761966640483,-555.4,0.00015,2]
[392801685,1761966640498,-789.95999999,0.00015,2]
[392801686,1761966640510,-567.60237289,0.00015,2]
[392801687,1761966640591,-452.20582707,0.00015,2]
[392801688,1761966640751,-2888.3461934,0.00015,2]
[392801692,1761966643431,-455.83943095,0.00015,2]
[392801693,1761966643484,-6765.0,0.00015,2]
[392801694,1761966643592,-399.79800001,0.00015,2]
[392801714,1761966645502,500.0,0.00030136,120]
[392801716,1761966646499,-2753.43217136,0.00015,2]
[392801717,1761966646551,-13023.76882806,0.00015,2]
[392801718,1761966646563,-3294.30583298,0.00015,2]
[392801799,1761966649578,500.0,0.00030136,120]
[392801800,1761966657907,500.0,0.00030136,120]
[392801801,1761966673230,558.89562022,0.00030136,120]
[392801802,1761966673847,500.0,0.00030136,120]
[392801803,1761966689995,798.01,0.00030136,120]
[392801804,1761966690400,500.0,0.00030136,120]
[392801805,1761966698494,500.0,0.00030136,120]
[392801806,1761966716533,500.0,0.00030136,120]
[392801807,1761966731630,500.0,0.00030136,120]
[392801808,1761966732725,233.19219216,0.00030136,120]
[392801809,1761966733895,500.0,0.00030136,120]
[392801810,1761966740163,500.0,0.00030136,120]
[392801811,1761966751855,500.0,0.00030136,120]
[392801812,1761966761112,500.0,0.00030136,120]
[392801813,1761966763208,520.98,0.00030136,120]
[392801814,1761966777607,500.0,0.00030136,120]
[392801815,1761966784377,500.0,0.00030136,120]
[392801818,1761966797851,500.0,0.00030136,120]
[392801819,1761966811429,500.0,0.00030136,120]
[392801827,1761966876344,500.0,0.00030136,120]
[392801828,1761966887082,500.0,0.00030136,120]
[392801835,1761966905895,500.0,0.00030136,120]
[392801836,1761966940487,392.27540321,0.00030136,120]
[392801837,1761966951017,500.0,0.00030136,120]
[392801838,1761966956068,500.0,0.00030136,120]
[392801839,1761967031542,500.0,0.00030136,120]
[392801840,1761967039623,500.0,0.00030136,120]
[392801883,1761967115554,500.0,0.00030136,120]
[392801884,1761967121920,500.0,0.00030136,120]
[392801885,1761967169148,500.0,0.00030136,120]
[392801886,1761967173577,500.0,0.00030136,120]
[392801887,1761967174112,500.0,0.00030136,120]
[392801888,1761967185907,473.60461537,0.00030136,120]
[392801889,1761967207575,500.0,0.00030136,120]
[392801890,1761967215369,500.0,0.00030136,120]
[392801891,1761967217224,917.02,0.00030136,120]
[392801892,1761967223176,500.0,0.00030136,120]
[392801893,1761967255146,500.0,0.00030136,120]
[392801894,1761967257090,285.77137039,0.00030136,120]
[392801895,1761967279075,500.0,0.00030136,120]
[392801896,1761967282737,500.0,0.00030136,120]
[392801897,1761967286027,428.36,7.002e-05,2]
[392801898,1761967286280,428.36,7.371e-05,2]
[392801899,1761967286495,428.36,7.74e-05,2]
[392801900,1761967286702,428.36,8.108e-05,2]
[392801901,1761967286902,428.36,8.477e-05,2]
[392801902,1761967287121,428.36,8.845e-05,2]
[392801903,1761967287328,428.36,9.214e-05,2]
[392801904,1761967287526,428.36,9.582e-05,2]
[392801905,1761967287626,500.0,0.00030136,120]
[392801906,1761967287731,428.36,9.951e-05,2]
[392801907,1761967287946,428.36,0.00010319,2]
[392801908,1761967288147,428.36,0.00010688,2]
[392801909,1761967288344,428.36,0.00011056,2]
[392801910,1761967288529,246.93231342,0.00011425,2]
[392801911,1761967288558,181.42768658,0.00011425,2]